Cogmind - Beta 9.4 @@@ ROGUE MODE // 2020.03.28 @ 12:46:58 Player: Pimski Result: Destroyed by G-73 Enforcer with Phase Gun Performance ------------- Evolutions (8) 4000 Regions Visited (29) 5800 Robots Destroyed (113) 565 Value Destroyed (2522) 2522 Prototype IDs (129) 2580 Alien Tech Used (10) 2000 Bonus (11277) 11277 TOTAL SCORE: 28744 Bonus ------- Triggered Max Security 2000 High Alert Combat Kills 72 Follower Combat Kills 273 Aligned with FarCom 300 Met Data Miner 300 Met Imprinter 300 Destroyed Z-Imprinter 1000 Met Warlord at Base 500 MAIN.C Attacked Warlord 500 Found Hidden Lab 3000 Met Warlord at Research 2000 Pursued by Intercept 2000 Friendly Fire -968 Cogmind --------- Core Integrity 0/1450 Matter 150/300 Energy 100/100 System Corruption 1% Temperature Cool (9) Movement Core (50) Location -2/Section 7 Parts ------- > --- POWER (2) -------- (None) > --- PROPULSION (7) --- Electron Diverter > --- UTILITY (13) ----- (None) > --- WEAPON (2) ------- (None) > --- INVENTORY (8) ---- Improved Quantum Reactor Field Propulsion Array Integrity Redistributor Integrity Redistributor Peak State ------------ > --- POWER ------------ Vortex Chain Reactor > --- PROPULSION ------- Field Propulsion Array Field Propulsion Array Improved Q-thruster Improved Q-thruster Cooled Q-thruster > --- UTILITY ---------- Advanced Power Amplifier Advanced Power Amplifier Advanced Power Amplifier Advanced Power Amplifier Large Storage Unit Zionite Metafield Generator Advanced Reaction Control System Experimental Phase Shifter Experimental Utility Shielding AEGIS Remote Shield Deep Network Scanner Deep Network Scanner Quantum Router > --- WEAPON ----------- Field Lobotomy Kit Lance > --- INVENTORY -------- Field Propulsion Array Electron Diverter Electron Diverter Improved Diametric Drive Experimental Heat Sink Experimental Heat Sink Advanced Coolant Injector Advanced Phase Shifter [Rating: 204] Favorites ----------- Power F-cell Engine Engine F-cell Engine Reactor Vortex Chain Reactor Propulsion Improved VTOL Module Treads Light Treads Leg Aluminum Leg Flight Unit Improved VTOL Module Utility Large Storage Unit Device Experimental Sensor Array Storage Large Storage Unit Processor Experimental Signal Interpreter Hackware Deep Network Scanner Protection Light Armor Plating Weapon Shotgun Energy Gun Medium Laser Ballistic Gun Shotgun Launcher Mini Grenade Launcher Special Weapon Improved Plasma Cutter Slashing Weapon Chainsword Piercing Weapon Lance Build | -11 -10 -10 -10 -9 -8 -8 -7 -7 -7 -7 -6 -6 -6 -6 -6 -6 -5 -5 -5 -5 -5 -4 -4 -4 -4 -3 -2 -2 -2 ------- Run | Scr Mat Min Exi Min Mat Sto Fac Low Low Dat Pro Fac Low Low Zio Dee Pro Fac Upp Upp War Pro Fac Arm Lab Res Res Qua Sec Slots Evolved 16 | . . . . . 4 . 2 . . . . 2 . . . . . 2 . . . . 2 . . 2 2 . . Power 1 | . . . . . . . . . . . . . . . . . . . . . . . 1 . . . . . . Propulsion 4 | . . . . . . . 2 . . . . . . . . . . . . . . . 1 . . . 1 . . Utility 11 | . . . . . 4 . . . . . . 2 . . . . . 2 . . . . . . . 2 1 . . Weapon . | . . . . . . . . . . . . . . . . . . . . . . . . . . . . . . Parts Attached 179 | . 5 1 1 . 17 43 10 2 . 2 3 7 . . 7 11 . 5 . . 7 3 11 3 6 3 18 6 8 Power 10 | . . . . . 1 3 1 . . . . . . . . 2 . 1 . . . 1 1 . . . . . . Engine 7 | . . . . . 1 3 1 . . . . . . . . 1 . 1 . . . . . . . . . . . Core . | . . . . . . . . . . . . . . . . . . . . . . . . . . . . . . Reactor 3 | . . . . . . . . . . . . . . . . 1 . . . . . 1 1 . . . . . . Propulsion 57 | . 2 . . . 7 14 4 1 . . . . . . . 1 . 1 . . 2 . 4 . . 1 10 3 7 Treads 21 | . 2 . . . 6 13 . . . . . . . . . . . . . . . . . . . . . . . Leg . | . . . . . . . . . . . . . . . . . . . . . . . . . . . . . . Wheel . | . . . . . . . . . . . . . . . . . . . . . . . . . . . . . . Hover . | . . . . . . . . . . . . . . . . . . . . . . . . . . . . . . Flight 36 | . . . . . 1 1 4 1 . . . . . . . 1 . 1 . . 2 . 4 . . 1 10 3 7 Utility 71 | . 1 1 . . 6 12 4 1 . . . 7 . . 1 7 . 3 . . 3 . 5 3 4 2 7 3 1 Device 31 | . . . . . . 1 1 1 . . . 1 . . . 4 . . . . 2 . 3 3 3 2 6 3 1 Storage 10 | . 1 1 . . 1 3 1 . . . . . . . . 1 . . . . 1 . 1 . . . . . . Processor 3 | . . . . . 1 . . . . . . 1 . . 1 . . . . . . . . . . . . . . Hackware 10 | . . . . . . 1 2 . . . . 4 . . . . . 2 . . . . . . 1 . . . . Protection 17 | . . . . . 4 7 . . . . . 1 . . . 2 . 1 . . . . 1 . . . 1 . . Artifact . | . . . . . . . . . . . . . . . . . . . . . . . . . . . . . . Weapon 41 | . 2 . 1 . 3 14 1 . . 2 3 . . . 6 1 . . . . 2 2 1 . 2 . 1 . . Energy Gun . | . . . . . . . . . . . . . . . . . . . . . . . . . . . . . . Energy Cannon . | . . . . . . . . . . . . . . . . . . . . . . . . . . . . . . Ballistic Gun 15 | . 2 . 1 . 2 10 . . . . . . . . . . . . . . . . . . . . . . . Ballistic Cannon . | . . . . . . . . . . . . . . . . . . . . . . . . . . . . . . Launcher 2 | . . . . . 1 1 . . . . . . . . . . . . . . . . . . . . . . . Special Weapon 8 | . . . . . . . . . . 1 1 . . . 3 . . . . . . 1 . . 1 . 1 . . Impact Weapon . | . . . . . . . . . . . . . . . . . . . . . . . . . . . . . . Slashing Weapon 9 | . . . . . . 3 1 . . 1 2 . . . 2 . . . . . . . . . . . . . . Piercing Weapon 7 | . . . . . . . . . . . . . . . 1 1 . . . . 2 1 1 . 1 . . . . Special Melee Weapon . | . . . . . . . . . . . . . . . . . . . . . . . . . . . . . . Unidentified Prototypes 36 | . . . . . 1 5 . 1 . . . 4 . . . 6 . . . . 3 . 1 1 3 . 3 . 8 Parts Lost 15 | . . . . . 1 4 . . . . . . . . . 2 . . . . . 1 . . . . . 1 6 Power 1 | . . . . . . . . . . . . . . . . . . . . . . 1 . . . . . . . Propulsion 3 | . . . . . . . . . . . . . . . . . . . . . . . . . . . . . 3 Utility 7 | . . . . . 1 2 . . . . . . . . . . . . . . . . . . . . . 1 3 Weapon 4 | . . . . . . 2 . . . . . . . . . 2 . . . . . . . . . . . . . Highest Loss Streak 4 | . . . . . 1 1 . . . . . . . . . 2 . . . . . 1 . . . . . 1 4 Average Slot Usage (%) 95 | . 91 100 100 100 95 99 89 92 92 92 97 99 100 100 99 94 93 91 94 94 96 100 89 87 80 81 81 82 73 Engine 7 | . 14 14 14 14 9 9 7 7 7 7 7 6 6 6 6 6 6 4 5 5 5 . . . . . . . . Treads 10 | . 27 28 28 28 18 17 3 . . . . . . . . . . . . . . . . . . . . . . Flight 13 | . . . . . . . 22 33 35 35 35 31 31 31 31 31 31 26 27 27 27 27 25 25 25 22 19 20 19 Device 4 | . . . . . . . 4 7 7 7 7 1 6 6 4 4 6 5 5 5 4 5 5 12 10 17 27 38 41 Storage 15 | . 20 28 28 28 24 27 11 7 7 7 7 6 6 6 6 6 6 5 5 5 5 5 5 5 5 4 4 4 3 Processor 4 | . . . . . . 9 7 7 7 7 7 1 6 6 7 7 6 5 5 5 5 5 5 5 2 . . . . Hackware 13 | . . . . . . 3 17 21 21 21 21 37 25 25 25 25 25 32 33 33 33 33 29 22 22 22 16 6 . Protection 8 | . . . . . 25 14 2 . . . . 1 6 6 6 6 6 4 5 5 5 5 5 5 5 4 4 3 . Ballistic Gun 10 | . 27 28 28 28 18 16 4 . . . . . . . . . . . . . . . . . . . . . . Slashing Weapon 1 | . . . . . . 1 5 7 7 5 10 12 12 12 6 . . . . . . . . . . . . . . Piercing Weapon 2 | . . . . . . . . . . . . . . . 1 4 6 5 5 5 7 11 9 7 5 4 4 4 3 Naked Turns . | . . . . . . . . . . . . . . . . . . . . . . . . . . . . . . Heaviest Build 94 | 13 31 59 59 59 77 94 94 24 24 29 27 28 28 28 30 24 24 24 24 24 28 28 63 63 63 64 89 90 90 Greatest Support 99 | 20 40 40 40 40 40 40 40 30 24 24 30 30 30 30 30 30 30 30 30 30 37 37 64 64 64 67 92 96 99 Greatest Overweight (x) 4 | . . 1 1 1 1 4 2 . . 1 . . . . . . . . . . . . . . . . 1 . 1 Average Overweight (x) . | . . . 1 1 1 1 . . . . . . . . . . . . . . . . . . . . . . . Largest Inventory Capacity 30 | 6 12 18 18 18 22 26 30 8 8 8 8 8 8 8 8 8 8 8 8 8 8 8 10 10 10 10 10 10 14 Average Capacity 14 | 6 8 17 18 18 21 23 13 8 8 8 8 8 8 8 8 8 8 8 8 8 8 8 8 10 10 10 10 10 10 Most Carried 26 | 6 11 18 18 18 22 26 26 8 8 8 8 8 8 8 8 8 8 8 8 8 8 8 10 10 10 10 10 10 9 Average Carried 14 | 6 7 14 17 18 20 23 13 7 8 8 7 7 8 8 7 7 8 7 8 8 7 8 8 10 9 9 9 8 7 Final Capacity 26 | 6 12 18 18 18 22 26 8 8 8 8 8 8 8 8 8 8 8 8 8 8 8 8 10 10 10 10 10 10 8 Final Carried 26 | 6 11 18 18 18 22 26 8 8 8 8 8 8 8 8 8 8 8 8 8 8 8 8 10 10 10 10 9 7 5 Class Distribution -------------------- 29% | Scavenger-Mutant 29% | Wizard-Sprinter 18% | Mutant 9% | Wizard-Scout 3% | Hacker-Sprinter Dominant Class ---------------- Mutant | -10/Materials Mutant | -10/Mines Mutant | -10/Exiles Mutant | -9/Mines Scavenger-Mutant | -8/Materials Scavenger-Mutant | -8/Storage Hacker-Scout | -7/Factory Hacker-Sprinter | -7/Lower Caves Hacker-Sprinter | -7/Lower Caves Hacker-Sprinter | -7/Data Miner Hacker-Sprinter | -6/Proximity Caves Wizard-Sprinter | -6/Factory Wizard-Sprinter | -6/Lower Caves Wizard-Sprinter | -6/Lower Caves Wizard-Sprinter | -6/Zion Wizard-Sprinter | -6/Deep Caves Wizard-Sprinter | -5/Proximity Caves Wizard-Scout | -5/Factory Wizard-Sprinter | -5/Upper Caves Wizard-Sprinter | -5/Upper Caves Wizard-Sprinter | -5/Warlord Wizard-Sprinter | -4/Proximity Caves Wizard-Scout | -4/Factory Wizard-Sprinter | -4/Armory Wizard-Sprinter | -4/Lab Wizard-Sprinter | -3/Research Wizard-Sprinter | -2/Research Machinist-Sprinter | -2/Quarantine Machinist-Sprinter | -2/Section 7 Resources | -11 -10 -10 -10 -9 -8 -8 -7 -7 -7 -7 -6 -6 -6 -6 -6 -6 -5 -5 -5 -5 -5 -4 -4 -4 -4 -3 -2 -2 -2 ----------- Run | Scr Mat Min Exi Min Mat Sto Fac Low Low Dat Pro Fac Low Low Zio Dee Pro Fac Upp Upp War Pro Fac Arm Lab Res Res Qua Sec Matter Collected 3366 | 200 138 62 10 . 608 1163 59 101 . . 50 40 30 . 70 110 . 50 . . 70 25 78 . . 142 260 100 . Remotely . | . . . . . . . . . . . . . . . . . . . . . . . . . . . . . . Salvage Created 5350 | 79 346 120 . . 1096 1836 59 . . . 30 118 . . . 351 . 117 . . . . 292 . . 355 457 . 94 Parts 282 | 1 16 10 . . 64 120 1 . . . 5 4 . . . 28 . 8 . . . . 5 . . 6 13 . 1 Haulers Intercepted 20 | . 1 . . . 2 6 . . . . . 1 . . . . . 1 . . . . 3 . . 2 4 . . Recyclers Shooed 11 | . 2 1 . . 5 3 . . . . . . . . . . . . . . . . . . . . . . . Parts Field Recycled . | . . . . . . . . . . . . . . . . . . . . . . . . . . . . . . Retrieved Matter . | . . . . . . . . . . . . . . . . . . . . . . . . . . . . . . Parts Self-Destructed 24 | . . . . . . . . . . . . . 5 . . . . . . . 14 5 . . . . . . . Prevented 8 | . . . . . . . . . . . . . . . . . . . . . 8 . . . . . . . . Kills | -11 -10 -10 -10 -9 -8 -8 -7 -7 -7 -7 -6 -6 -6 -6 -6 -6 -5 -5 -5 -5 -5 -4 -4 -4 -4 -3 -2 -2 -2 ------- Run | Scr Mat Min Exi Min Mat Sto Fac Low Low Dat Pro Fac Low Low Zio Dee Pro Fac Upp Upp War Pro Fac Arm Lab Res Res Qua Sec Combat Hostiles Destroyed 56 | . 4 3 . . 13 27 . . . . . . . . . 8 . . . . . . . . . . . . 1 Melee 9 | . . . . . . . . . . . . . . . . 8 . . . . . . . . . . . . 1 Guns 43 | . 4 3 . . 9 27 . . . . . . . . . . . . . . . . . . . . . . . AOE 4 | . . . . . 4 . . . . . . . . . . . . . . . . . . . . . . . . Classes Destroyed 13 | 1 2 2 . . 3 2 1 . . . . . . . . 2 . . . . . . . . . . . . . Worker 8 | . . 1 . . 3 4 . . . . . . . . . . . . . . . . . . . . . . . Builder 2 | . . . . . 1 1 . . . . . . . . . . . . . . . . . . . . . . . Hauler 20 | . 1 . . . 2 6 . . . . . 1 . . . . . 1 . . . . 3 . . 2 4 . . Recycler 12 | 1 2 1 . . 6 1 . . . . . . . . . . . . . . . . . . . 1 . . . Mechanic 1 | . . . . . . . 1 . . . . . . . . . . . . . . . . . . . . . . Operator 3 | . . . . . . 3 . . . . . . . . . . . . . . . . . . . . . . . Watcher 6 | . . . . . 2 2 . . . . . . . . . . . 1 . . . . . . . . 1 . . Swarmer 13 | . . 3 . . 6 4 . . . . . . . . . . . . . . . . . . . . . . . Grunt 19 | . 4 . . . 4 11 . . . . . . . . . . . . . . . . . . . . . . . Sentry 15 | . . . . . 3 11 . . . . . . . . . . . . . . . . . . . . . . 1 Hunter 1 | . . . . . . 1 . . . . . . . . . . . . . . . . . . . . . . . Z-Technician 4 | . . . . . . . . . . . . . . . . 4 . . . . . . . . . . . . . Z-Light 2 | . . . . . . . . . . . . . . . . 2 . . . . . . . . . . . . . Assembled 5 | . . . . . . . . . . . . . . . . 5 . . . . . . . . . . . . . Best Kill Streak 7 | 1 4 3 . . 6 7 1 . . . . 1 . . . 4 . 2 . . . . 1 . . 3 2 . 1 Combat Bots Only 5 | . 2 3 . . 4 5 . . . . . . . . . 4 . . . . . . . . . . . . 1 Max Kills in Single Turn 3 | 1 1 1 . . 3 2 1 . . . 1 1 . . . 1 . 1 . . . . 1 . . 1 1 . 1 Gunslinging . | . . . . . . . . . . . . . . . . . . . . . . . . . . . . . . Exploded 2 | . . . . . 2 . . . . . . . . . . . . . . . . . . . . . . . . Melee 1 | . . . . . . . . . . . . . . . . 1 . . . . . . . . . . . . 1 Uniques/NPCs Destroyed 2 | . . . . . . . . . . . 1 . . . . 1 . . . . . . . . . . . . . Data Miner (-6/Proximity Caves) Z-Imprinter (-6/Deep Caves) Combat | -11 -10 -10 -10 -9 -8 -8 -7 -7 -7 -7 -6 -6 -6 -6 -6 -6 -5 -5 -5 -5 -5 -4 -4 -4 -4 -3 -2 -2 -2 -------- Run | Scr Mat Min Exi Min Mat Sto Fac Low Low Dat Pro Fac Low Low Zio Dee Pro Fac Upp Upp War Pro Fac Arm Lab Res Res Qua Sec Damage Taken 6070 | . 18 23 . . 761 1218 . . . . . . . . . 481 21 . 170 . 375 132 161 230 . . 122 381 1977 Core 2309 | . 18 . . . 78 154 . . . . . . . . . 168 . . 68 . 184 35 63 72 . . 11 48 1410 Absorbed by Shields 812 | . . . . . . . . . . . . . . . . . . . . . . . . . . . 87 316 409 Core Remaining (%) 85 | 100 . . . 92 . 57 . . . . 100 . . . . . 80 . . . . 71 . . 80 100 . . . Volleys Fired 240 | 3 11 7 . . 73 124 5 . . 1 9 . . . . 3 . . . . . 1 . . 1 . 2 . . Largest 2 | 2 2 2 . . 2 2 2 . . 1 1 . . . . 2 . . . . . 1 . . 1 . 1 . . Hottest 90 | 90 46 46 . . 43 51 50 . . . 20 . . . . 40 . . . . . . . . . . . . . Shots Fired 461 | 6 22 14 . . 144 245 10 . . 1 9 . . . . 6 . . . . . 1 . . 1 . 2 . . Gun 439 | 6 22 14 . . 142 245 10 . . . . . . . . . . . . . . . . . . . . . . Cannon . | . . . . . . . . . . . . . . . . . . . . . . . . . . . . . . Launcher 2 | . . . . . 2 . . . . . . . . . . . . . . . . . . . . . . . . Special 20 | . . . . . . . . . . 1 9 . . . . 6 . . . . . 1 . . 1 . 2 . . Kinetic 433 | . 22 14 . . 142 245 10 . . . . . . . . . . . . . . . . . . . . . . Thermal 18 | 3 . . . . . . . . . . 9 . . . . 6 . . . . . . . . . . . . . Explosive 2 | . . . . . 2 . . . . . . . . . . . . . . . . . . . . . . . . Electromagnetic 3 | 3 . . . . . . . . . . . . . . . . . . . . . . . . . . . . . Robot Hit Streak 29 | 2 12 9 . . 11 29 3 . . 2 4 . . . . 1 . . . . . 1 . . 2 . 4 . . Robot Miss Streak 5 | 2 3 1 . . 4 5 2 . . . 4 . . . . 2 . . . . . . . . . . . . . Penetration Max 1 | . . . . . . 1 . . . . . . . . . . . . . . . . . . . . . . . Secondary Targets 1 | . . . . . 1 . . . . . . . . . . . . . . . . . . . . . . . . Max Gunslinging Chain 1 | . . . . . 1 . . . . . . . . . . . . . . . . . . . . . . . . Shots Hit Robots 391 | 3 19 11 . . 101 191 5 . . 1 5 4 . . . 23 . 2 . . . 1 5 . 1 5 8 2 4 Core Hits 180 | 2 15 6 . . 43 76 2 . . . 3 1 . . . 17 . 2 . . . . 3 . . 3 5 . 2 Critical Hits 12 | . . . . . 2 3 . . . . 1 . . . . 3 . 1 . . . . 1 . . . . . 1 Critical Kills 6 | . . . . . . 2 . . . . . . . . . 1 . 1 . . . . 1 . . . . . 1 Critical Parts Destroyed 4 | . . . . . 2 1 . . . . 1 . . . . . . . . . . . . . . . . . . Melee Attacks 310 | . . . . . . 3 1 5 3 . . 25 6 . 27 54 11 14 7 23 1 7 47 13 3 9 25 13 13 Impact . | . . . . . . . . . . . . . . . . . . . . . . . . . . . . . . Slashing 63 | . . . . . . 3 1 5 3 . . 25 6 . 20 . . . . . . . . . . . . . . Piercing 247 | . . . . . . . . . . . . . . . 7 54 11 14 7 23 1 7 47 13 3 9 25 13 13 Sneak Attacks 20 | . . . . . . . . . . . . 1 . . . 6 . 1 . . . . 4 . . 3 4 1 . Combat Hostiles 1 | . . . . . . . . . . . . . . . . . . . . . . . . . . . . 1 . Follow-up Attacks . | . . . . . . . . . . . . . . . . . . . . . . . . . . . . . . Damage Inflicted 9262 | 24 340 182 . . 1732 3200 91 . . . 66 247 . . . 1045 . 143 . . . . 634 . . 489 701 252 116 Guns 5166 | 24 328 182 . . 1372 3169 91 . . . . . . . . . . . . . . . . . . . . . . Cannons . | . . . . . . . . . . . . . . . . . . . . . . . . . . . . . . Explosions 348 | . . . . . 348 . . . . . . . . . . . . . . . . . . . . . . . . Melee 3578 | . . . . . . . . . . . . 247 . . . 996 . 143 . . . . 634 . . 489 701 252 116 Ramming 55 | . 12 . . . 12 31 . . . . . . . . . . . . . . . . . . . . . . . Kinetic 5142 | . 328 182 . . 1372 3169 91 . . . . . . . . . . . . . . . . . . . . . . Thermal 139 | 24 . . . . . . . . . . 66 . . . . 49 . . . . . . . . . . . . . Explosive 348 | . . . . . 348 . . . . . . . . . . . . . . . . . . . . . . . . Electromagnetic . | . . . . . . . . . . . . . . . . . . . . . . . . . . . . . . Impact . | . . . . . . . . . . . . . . . . . . . . . . . . . . . . . . Slashing 247 | . . . . . . . . . . . . 247 . . . . . . . . . . . . . . . . . Piercing 3331 | . . . . . . . . . . . . . . . . 996 . 143 . . . . 634 . . 489 701 252 116 Highest Corruption 1 | . . . . . . . . . . . . . . . . . . . . . . . . 1 1 . . . 1 Average Corruption 1 | . . . . . . . . . . . . . . . . . . . . . . . . 1 1 . . . 1 Corruption Purged . | . . . . . . . . . . . . . . . . . . . . . . . . . . . . . . Overload Shots . | . . . . . . . . . . . . . . . . . . . . . . . . . . . . . . Overflow Damage 266 | . . . . . . . . . . . . . . . . 126 . . . . . . 107 . . 33 . . . Projectiles . | . . . . . . . . . . . . . . . . . . . . . . . . . . . . . . Explosions . | . . . . . . . . . . . . . . . . . . . . . . . . . . . . . . Melee 266 | . . . . . . . . . . . . . . . . 126 . . . . . . 107 . . 33 . . . Knockbacks . | . . . . . . . . . . . . . . . . . . . . . . . . . . . . . . Impact . | . . . . . . . . . . . . . . . . . . . . . . . . . . . . . . Kinetic . | . . . . . . . . . . . . . . . . . . . . . . . . . . . . . . Secondary . | . . . . . . . . . . . . . . . . . . . . . . . . . . . . . . Self-Inflicted Damage . | . . . . . . . . . . . . . . . . . . . . . . . . . . . . . . Shots . | . . . . . . . . . . . . . . . . . . . . . . . . . . . . . . Rammed 14 | . 1 . . . 3 8 . . . . . . . . . . . . . . 2 . . . . . . . . Targets Rammed 16 | . 1 1 . . 3 9 . . . . . . . . . . . . . . 2 . . . . . . . . Kicked . | . . . . . . . . . . . . . . . . . . . . . . . . . . . . . . Crushed 2 | . . 1 . . . 1 . . . . . . . . . . . . . . . . . . . . . . . Highest Temperature 269 | 60 4 . . . 103 89 1 . . . 4 . . . . . . . 1 . 3 . 72 150 4 23 5 269 . Average Temperature 26 | 26 4 . . . 33 17 1 . . . 2 . . . . . . . 1 . 3 . 13 35 4 4 4 141 . Received Heat Transfer 1181 | . 9 . . . 315 396 . . . . . . . . . 111 12 . 9 . 93 . 18 12 . . 9 8 189 Effects 1 | . . . . . . . . . . . . . . . . . . . . . . . . . . . . 1 . Energy Bleed 1 | . . . . . . . . . . . . . . . . . . . . . . . . . . . . 1 . Siege Activations . | . . . . . . . . . . . . . . . . . . . . . . . . . . . . . . Robots Corrupted . | . . . . . . . . . . . . . . . . . . . . . . . . . . . . . . Combat Hostiles . | . . . . . . . . . . . . . . . . . . . . . . . . . . . . . . Parts Fried . | . . . . . . . . . . . . . . . . . . . . . . . . . . . . . . Impact Corruptions . | . . . . . . . . . . . . . . . . . . . . . . . . . . . . . . Robots Melted . | . . . . . . . . . . . . . . . . . . . . . . . . . . . . . . Combat Hostiles . | . . . . . . . . . . . . . . . . . . . . . . . . . . . . . . Parts Melted . | . . . . . . . . . . . . . . . . . . . . . . . . . . . . . . Heat Transferred 323 | 74 . . . . . . . . . . 222 . . . . 27 . . . . . . . . . . . . . Parts Sabotaged . | . . . . . . . . . . . . . . . . . . . . . . . . . . . . . . Parts Stolen . | . . . . . . . . . . . . . . . . . . . . . . . . . . . . . . Parts Stripped . | . . . . . . . . . . . . . . . . . . . . . . . . . . . . . . Power Chain Reactions . | . . . . . . . . . . . . . . . . . . . . . . . . . . . . . . Missiles Intercepted . | . . . . . . . . . . . . . . . . . . . . . . . . . . . . . . Alert | -11 -10 -10 -10 -9 -8 -8 -7 -7 -7 -7 -6 -6 -6 -6 -6 -6 -5 -5 -5 -5 -5 -4 -4 -4 -4 -3 -2 -2 -2 ------- Run | Scr Mat Min Exi Min Mat Sto Fac Low Low Dat Pro Fac Low Low Zio Dee Pro Fac Upp Upp War Pro Fac Arm Lab Res Res Qua Sec Peak Influence 1895 | 5 156 88 . . 254 372 110 . . . . 60 . . . . . 67 . . . . 141 134 . 162 726 1833 1895 Average Influence 192 | 2 103 74 . . 115 173 79 . . . . 31 . . . . . 24 . . . . 51 47 . 81 312 1721 1768 Maximum Alert Level 5 | . . . . . 1 1 . . . . . . . . . . . . . . . . . . . . 3 5 5 Low Security (%) 75 | 100 100 100 . 100 85 56 100 . . . . 100 . . . . . 100 . . . . 100 100 . 100 47 . . Level 1 18 | . . . . . 14 43 . . . . . . . . . . . . . . . . . . . . 23 . . Level 2 1 | . . . . . . . . . . . . . . . . . . . . . . . . . . . 27 . . Level 3 . | . . . . . . . . . . . . . . . . . . . . . . . . . . . 1 . . Level 4 . | . . . . . . . . . . . . . . . . . . . . . . . . . . . . . . Level 5 . | . . . . . . . . . . . . . . . . . . . . . . . . . . . . . . High Security . | . . . . . . . . . . . . . . . . . . . . . . . . . . . . . . Max Security 4 | . . . . . . . . . . . . . . . . . . . . . . . . . . . . 99 99 Squads Dispatched 50 | . 2 . . . 2 4 1 . . . . 1 . . . . . 2 . . . . 1 3 . 1 9 14 10 Investigation 6 | . 1 . . . . 1 . . . . . 1 . . . . . 1 . . . . . 1 . . . . 1 Extermination 2 | . . . . . . . . . . . . . . . . . . 1 . . . . 1 . . . . . . Reinforcement 9 | . 1 . . . 2 2 1 . . . . . . . . . . . . . . . . 2 . . 1 . . Assault 13 | . . . . . . . . . . . . . . . . . . . . . . . . . . . . 7 6 Garrison 1 | . . . . . . 1 . . . . . . . . . . . . . . . . . . . . . . . Intercept 19 | . . . . . . . . . . . . . . . . . . . . . . . . . . 1 8 7 3 Construction Impeded 1 | . . . . . 1 . . . . . . . . . . . . . . . . . . . . . . . . Haulers Reinforced . | . . . . . . . . . . . . . . . . . . . . . . . . . . . . . . Stealth | -11 -10 -10 -10 -9 -8 -8 -7 -7 -7 -7 -6 -6 -6 -6 -6 -6 -5 -5 -5 -5 -5 -4 -4 -4 -4 -3 -2 -2 -2 --------- Run | Scr Mat Min Exi Min Mat Sto Fac Low Low Dat Pro Fac Low Low Zio Dee Pro Fac Upp Upp War Pro Fac Arm Lab Res Res Qua Sec Distress Signals 24 | . 2 . . . 1 6 . . . . 3 . . . . . . . . . . . 3 . . 1 3 1 4 Communications Jammed . | . . . . . . . . . . . . . . . . . . . . . . . . . . . . . . Distress Signals . | . . . . . . . . . . . . . . . . . . . . . . . . . . . . . . Times Spotted 342 | . 9 4 . . 25 40 4 . . . 1 3 2 . . 9 4 4 10 5 11 7 22 28 . 1 17 63 73 Peak Tracking Total 56 | . 7 3 . . 4 4 1 . . . 1 1 4 . . 5 3 1 10 5 12 5 12 28 . 2 9 40 56 Tactical Retreats 24 | . . . . . 1 3 . . . . . . . . . 1 3 1 . 1 . . 3 . . . 3 3 5 Traps | -11 -10 -10 -10 -9 -8 -8 -7 -7 -7 -7 -6 -6 -6 -6 -6 -6 -5 -5 -5 -5 -5 -4 -4 -4 -4 -3 -2 -2 -2 ------- Run | Scr Mat Min Exi Min Mat Sto Fac Low Low Dat Pro Fac Low Low Zio Dee Pro Fac Upp Upp War Pro Fac Arm Lab Res Res Qua Sec Traps Triggered 9 | . . . . . 1 3 . . . . 1 . . . . . . . . . . . 1 1 . . 2 . . Indirectly . | . . . . . . . . . . . . . . . . . . . . . . . . . . . . . . Trap Hack Attempts . | . . . . . . . . . . . . . . . . . . . . . . . . . . . . . . Triggered . | . . . . . . . . . . . . . . . . . . . . . . . . . . . . . . Disarmed . | . . . . . . . . . . . . . . . . . . . . . . . . . . . . . . Reprogrammed 6 | . . . . . . 6 . . . . . . . . . . . . . . . . . . . . . . . Reused 1 | . . . . . . 1 . . . . . . . . . . . . . . . . . . . . . . . Traps Extracted . | . . . . . . . . . . . . . . . . . . . . . . . . . . . . . . Installed . | . . . . . . . . . . . . . . . . . . . . . . . . . . . . . . Triggered 11 | . . . . . . 1 . . . . . . . . . . . . 1 2 7 . . . . . . . . Machines | -11 -10 -10 -10 -9 -8 -8 -7 -7 -7 -7 -6 -6 -6 -6 -6 -6 -5 -5 -5 -5 -5 -4 -4 -4 -4 -3 -2 -2 -2 ---------- Run | Scr Mat Min Exi Min Mat Sto Fac Low Low Dat Pro Fac Low Low Zio Dee Pro Fac Upp Upp War Pro Fac Arm Lab Res Res Qua Sec Machines Disabled 17 | . . . . . . 5 . . . . . . . . . 1 . . . . . . . 1 1 2 1 3 3 Max in Single Turn 1 | . . . . . . 1 . . . . . . . . . 1 . . . . . . . 1 1 . 1 1 1 Garrison Access 3 | . . . . . . 1 . . . . . . . . . . . . . . . . . . . . 1 1 . Machines Sabotaged . | . . . . . . . . . . . . . . . . . . . . . . . . . . . . . . Garrisons Compromised . | . . . . . . . . . . . . . . . . . . . . . . . . . . . . . . Overloaded Fab Kills . | . . . . . . . . . . . . . . . . . . . . . . . . . . . . . . Fab Network Shutdowns 1 | . . . . . . . . . . . . . . . . . . . . . . . . . . . 1 . . Hacking | -11 -10 -10 -10 -9 -8 -8 -7 -7 -7 -7 -6 -6 -6 -6 -6 -6 -5 -5 -5 -5 -5 -4 -4 -4 -4 -3 -2 -2 -2 --------- Run | Scr Mat Min Exi Min Mat Sto Fac Low Low Dat Pro Fac Low Low Zio Dee Pro Fac Upp Upp War Pro Fac Arm Lab Res Res Qua Sec Machines Accessed 71 | . 2 . 2 . 5 14 5 . 2 4 . 7 . . 1 . . 7 . . 3 . 6 5 1 3 3 . 1 Terminals 41 | . 2 . . . 4 10 5 . . . . 4 . . . . . 4 . . . . 5 4 . 1 1 . 1 Fabricators 5 | . . . . . . . . . . . . 2 . . . . . . . . . . 1 1 . . 1 . . Repair Stations 3 | . . . . . . 2 . . . . . . . . . . . 1 . . . . . . . . . . . Recycling Units 2 | . . . . . 1 1 . . . . . . . . . . . . . . . . . . . . . . . Scanalyzers 3 | . . . . . . . . . . . . . . . . . . 1 . . . . . . . 2 . . . Garrison Access 4 | . . . . . . 1 . . . . . 1 . . . . . 1 . . . . . . . . 1 . . Total Hacks 400 | . 9 . 2 . 19 46 23 . 5 27 . 56 . . 4 . . 55 . . 7 . 41 43 19 22 19 . 3 Successful 338 | . 6 . 2 . 11 31 17 . 5 27 . 49 . . 4 . . 48 . . 7 . 36 39 19 19 18 . . Failed 57 | . 2 . . . 8 14 6 . . . . 6 . . . . . 6 . . . . 5 3 . 3 1 . 3 Catastrophic 6 | . 1 . . . . 1 1 . . . . . . . . . . . . . . . . . . . . . 3 Database Lockouts 5 | . 1 . . . . 1 . . . . . 1 . . . . . 1 . . . . . 1 . . . . . Manual 221 | . 8 . 1 . 15 33 14 . . . . 41 . . 1 . . 24 . . 1 . 28 30 . 11 11 . 3 Terminals 254 | . 9 . . . 15 36 23 . . . . 41 . . . . . 33 . . . . 34 38 . 12 10 . 3 Fabricators 34 | . . . . . . . . . . . . 14 . . . . . . . . . . 7 5 . . 8 . . Repair Stations 18 | . . . . . . 6 . . . . . . . . . . . 12 . . . . . . . . . . . Recycling Units 7 | . . . . . 4 3 . . . . . . . . . . . . . . . . . . . . . . . Scanalyzers 18 | . . . . . . . . . . . . . . . . . . 8 . . . . . . . 10 . . . Garrison Access 5 | . . . . . . 1 . . . . . 1 . . . . . 2 . . . . . . . . 1 . . Terminal Hacks 191 | . 4 . 2 . 3 14 10 . 5 27 . 26 . . 4 . . 17 . . 7 . 19 24 19 5 5 . . Record 35 | . . . 1 . . . . . 4 11 . . . . . . . . . . . . . . 19 . . . . Part Schematic 28 | . . . . . . . 2 . . 7 . 10 . . 4 . . 2 . . . . 2 . . 1 . . . Robot Schematic 6 | . . . . . . . . . . 6 . . . . . . . . . . . . . . . . . . . Robot Analysis 2 | . . . . . 1 . . . . . . . . . . . . 1 . . . . . . . . . . . Prototype ID Bank 41 | . 1 . . . . 2 2 . . 3 . 4 . . . . . 3 . . 5 . 7 13 . . 1 . . Open Door 6 | . . . . . . 2 . . 1 . . . . . . . . . . . 2 . . 1 . . . . . Level Access Points 1 | . . . . . . . . . . . . . . . . . . . . . . . . 1 . . . . . Branch Access Points 7 | . 1 . . . . . 1 . . . . 1 . . . . . 1 . . . . 1 . . 1 1 . . Emergency Access Points 1 | . . . . . . . . . . . . . . . . . . . . . . . . 1 . . . . . Machine Index 7 | . . . . . . . 1 . . . . 1 . . . . . 1 . . . . . 1 . 2 1 . . Terminal Index 3 | . . . . . 1 1 1 . . . . . . . . . . . . . . . . . . . . . . Fabricator Index 2 | . . . . . . . . . . . . . . . . . . 1 . . . . 1 . . . . . . Repair Station Index 1 | . . . . . . . . . . . . . . . . . . . . . . . 1 . . . . . . Scanalyzer Index 2 | . . . . . . . 1 . . . . . . . . . . . . . . . 1 . . . . . . Alert Level 2 | . . . . . . 1 . . . . . 1 . . . . . . . . . . . . . . . . . Unreport Threat 3 | . . . . . . 3 . . . . . . . . . . . . . . . . . . . . . . . Locate Traps 11 | . 1 . . . . 2 . . . . . 3 . . . . . . . . . . 3 1 . . 1 . . Reprogram Traps 1 | . . . . . . 1 . . . . . . . . . . . . . . . . . . . . . . . Recall Investigation 5 | . 1 . . . . 1 . . . . . 1 . . . . . 1 . . . . . 1 . . . . . Recall Extermination 2 | . . . . . . . . . . . . . . . . . . 1 . . . . 1 . . . . . . Hauler Manifests 8 | . . . . . 1 1 1 . . . . 1 . . . . . 1 . . . . 1 1 . 1 . . . Registered Components 4 | . . . . . . . 1 . . . . 1 . . . . . 1 . . . . . 1 . . . . . Registered Prototypes 3 | . . . . . . . . . . . . 1 . . . . . 1 . . . . . 1 . . . . . Zone Layout 9 | . . . . . . . . . . . . 2 . . . . . 3 . . . . 1 2 . . 1 . . EX-Prototype ID Bank 1 | . . . 1 . . . . . . . . . . . . . . . . . . . . . . . . . . Fabricator Hacks 25 | . . . . . . . . . . . . 10 . . . . . . . . . . 5 4 . . 6 . . Network Status 1 | . . . . . . . . . . . . 1 . . . . . . . . . . . . . . . . . Load Schematic 10 | . . . . . . . . . . . . 4 . . . . . . . . . . 2 2 . . 2 . . Build 14 | . . . . . . . . . . . . 5 . . . . . . . . . . 3 2 . . 4 . . Repair Station Hacks 18 | . . . . . . 6 . . . . . . . . . . . 12 . . . . . . . . . . . Scan Component 9 | . . . . . . 3 . . . . . . . . . . . 6 . . . . . . . . . . . Repair 9 | . . . . . . 3 . . . . . . . . . . . 6 . . . . . . . . . . . Recycling Unit Hacks . | . . . . . . . . . . . . . . . . . . . . . . . . . . . . . . Scanalyzer 18 | . . . . . . . . . . . . . . . . . . 8 . . . . . . . 10 . . . Insert Component 9 | . . . . . . . . . . . . . . . . . . 3 . . . . . . . 6 . . . Analyze 9 | . . . . . . . . . . . . . . . . . . 5 . . . . . . . 4 . . . Garrison Access Hacks 2 | . . . . . . 1 . . . . . . . . . . . . . . . . . . . . 1 . . Seal Access 2 | . . . . . . 1 . . . . . . . . . . . . . . . . . . . . 1 . . Unauthorized Hacks 175 | . 5 . . . 19 24 14 . . . . 26 . . . . . 22 . . . . 23 22 . 8 12 . . Terminals 65 | . 2 . . . 5 7 7 . . . . 8 . . . . . 9 . . . . 9 10 . 4 4 . . Track 14 | . . . . . 1 1 . . . . . 3 . . . . . 2 . . . . 2 3 . 1 1 . . Assimilate 8 | . . . . . . . 3 . . . . . . . . . . 2 . . . . 2 1 . . . . . Botnet 23 | . 1 . . . 3 4 2 . . . . 2 . . . . . 3 . . . . 3 3 . 1 1 . . Disrupt 7 | . . . . . . 2 . . . . . 1 . . . . . . . . . . 1 1 . 1 1 . . Operators 13 | . 1 . . . 1 . 2 . . . . 2 . . . . . 2 . . . . 1 2 . 1 1 . . Fabricators 9 | . . . . . . . . . . . . 4 . . . . . . . . . . 2 1 . . 2 . . Report 1 | . . . . . . . . . . . . 1 . . . . . . . . . . . . . . . . . Prioritize 3 | . . . . . . . . . . . . 1 . . . . . . . . . . 1 . . . 1 . . Siphon 5 | . . . . . . . . . . . . 2 . . . . . . . . . . 1 1 . . 1 . . Repair Stations . | . . . . . . . . . . . . . . . . . . . . . . . . . . . . . . Recycling Units 6 | . . . . . 3 3 . . . . . . . . . . . . . . . . . . . . . . . Monitor 2 | . . . . . 1 1 . . . . . . . . . . . . . . . . . . . . . . . Recyclers 2 | . . . . . 1 1 . . . . . . . . . . . . . . . . . . . . . . . Mask 2 | . . . . . 1 1 . . . . . . . . . . . . . . . . . . . . . . . Scanalyzers . | . . . . . . . . . . . . . . . . . . . . . . . . . . . . . . Garrison Access 3 | . . . . . . . . . . . . 1 . . . . . 2 . . . . . . . . . . . Reprogram 2 | . . . . . . . . . . . . 1 . . . . . 1 . . . . . . . . . . . Watchers 1 | . . . . . . . . . . . . . . . . . . 1 . . . . . . . . . . . Data Cores Recovered 1 | . . . . . . 1 . . . . . . . . . . . . . . . . . . . . . . . Used 1 | . . . . . . 1 . . . . . . . . . . . . . . . . . . . . . . . Hacking Detections 41 | . 2 . . . 5 11 4 . . . . 2 . . . . . 3 . . . . 5 4 . 3 1 . 1 Full Trace Events 1 | . . . . . . . . . . . . . . . . . . . . . . . . . . . . . 1 Feedback Events . | . . . . . . . . . . . . . . . . . . . . . . . . . . . . . . Feedback Blocked . | . . . . . . . . . . . . . . . . . . . . . . . . . . . . . . Robot Schematics Acquired 6 | . . . . . . . . . . 6 . . . . . . . . . . . . . . . . . . . Robots Built . | . . . . . . . . . . . . . . . . . . . . . . . . . . . . . . Matter . | . . . . . . . . . . . . . . . . . . . . . . . . . . . . . . Time . | . . . . . . . . . . . . . . . . . . . . . . . . . . . . . . Total Robot Build Rating . | . . . . . . . . . . . . . . . . . . . . . . . . . . . . . . Part Schematics Acquired 33 | . . . . . . . 2 . . 7 . 10 . . 4 . . 5 . . . . 2 . . 3 . . . Parts Built 14 | . . . . . . . . . . . . 5 . . . . . . . . . . 3 2 . . 4 . . Matter 2861 | . . . . . . . . . . . . 744 . . . . . . . . . . 689 476 . . 952 . . Time 950 | . . . . . . . . . . . . 440 . . . . . . . . . . 202 168 . . 140 . . Total Part Build Rating 81 | . . . . . . . . . . . . 28 . . . . . . . . . . 17 12 . . 24 . . Parts Repaired 9 | . . . . . . 3 . . . . . . . . . . . 6 . . . . . . . . . . . Time 386 | . . . . . . 132 . . . . . . . . . . . 254 . . . . . . . . . . . Parts Recycled . | . . . . . . . . . . . . . . . . . . . . . . . . . . . . . . Recycled Matter . | . . . . . . . . . . . . . . . . . . . . . . . . . . . . . . Retrieved Matter . | . . . . . . . . . . . . . . . . . . . . . . . . . . . . . . Retrieved Components . | . . . . . . . . . . . . . . . . . . . . . . . . . . . . . . Parts Scanalyzed 6 | . . . . . . . . . . . . . . . . . . 3 . . . . . . . 3 . . . Part Schematics Acquired 5 | . . . . . . . . . . . . . . . . . . 3 . . . . . . . 2 . . . Parts Damaged 2 | . . . . . . . . . . . . . . . . . . 2 . . . . . . . . . . . Bothacking | -11 -10 -10 -10 -9 -8 -8 -7 -7 -7 -7 -6 -6 -6 -6 -6 -6 -5 -5 -5 -5 -5 -4 -4 -4 -4 -3 -2 -2 -2 ------------ Run | Scr Mat Min Exi Min Mat Sto Fac Low Low Dat Pro Fac Low Low Zio Dee Pro Fac Upp Upp War Pro Fac Arm Lab Res Res Qua Sec Used RIF Installer . | . . . . . . . . . . . . . . . . . . . . . . . . . . . . . . Robots Hacked . | . . . . . . . . . . . . . . . . . . . . . . . . . . . . . . Non-combat . | . . . . . . . . . . . . . . . . . . . . . . . . . . . . . . Combat . | . . . . . . . . . . . . . . . . . . . . . . . . . . . . . . Robot Hacks Applied . | . . . . . . . . . . . . . . . . . . . . . . . . . . . . . . Relay Couplers Released 1 | . . . . . . . . . . . . . . . . . . . . . . . . . . . . 1 . Machine Destruction 1 | . . . . . . . . . . . . . . . . . . . . . . . . . . . . 1 . Robots Rewired 5 | . . . . . . . . . . . . . . . . . . 1 . . 4 . . . . . . . . Allies Hacked . | . . . . . . . . . . . . . . . . . . . . . . . . . . . . . . Hacks Repelled . | . . . . . . . . . . . . . . . . . . . . . . . . . . . . . . Allies | -11 -10 -10 -10 -9 -8 -8 -7 -7 -7 -7 -6 -6 -6 -6 -6 -6 -5 -5 -5 -5 -5 -4 -4 -4 -4 -3 -2 -2 -2 -------- Run | Scr Mat Min Exi Min Mat Sto Fac Low Low Dat Pro Fac Low Low Zio Dee Pro Fac Upp Upp War Pro Fac Arm Lab Res Res Qua Sec Total Allies 25 | . . . . . . . 2 . 3 1 . . . . 4 . . 3 . . 4 1 1 . 1 . 5 . . Largest Group 5 | . . . . . . . 2 1 3 1 1 . . . 4 4 . 2 1 . 4 1 1 . 1 1 5 . . Highest-Rated Group 298 | . . . . . . . 20 10 60 59 59 . . . 233 233 . 55 26 . 207 56 26 . 192 192 298 . . Highest-Rated Ally 192 | . . . . . . . 10 10 20 59 59 . . . 94 94 . 29 26 . 60 56 26 . 192 192 80 . . Total Orders 4 | . . . . . . . . . . . . . . . . . . 2 2 . . . . . . . . . . STAY 1 | . . . . . . . . . . . . . . . . . . . 1 . . . . . . . . . . GOTO 1 | . . . . . . . . . . . . . . . . . . 1 . . . . . . . . . . . FOLLOW 2 | . . . . . . . . . . . . . . . . . . 1 1 . . . . . . . . . . Ally Attacks 69 | . . . . . . . . . . . . . . . . 37 . 1 . . 3 1 . . . 4 23 . . Total Damage 2088 | . . . . . . . . . . . . . . . . 756 . 20 . . 162 36 . . . 319 795 . . Kills 9 | . . . . . . . . . . . . . . . . . . . . . . 1 . . . 2 6 . . Allies Corrupted . | . . . . . . . . . . . . . . . . . . . . . . . . . . . . . . Allies Melted . | . . . . . . . . . . . . . . . . . . . . . . . . . . . . . . Field Lobotomies 5 | . . . . . . . . . . 1 . . . . . . . . . . . 1 . . 1 . 2 . . Intel | -11 -10 -10 -10 -9 -8 -8 -7 -7 -7 -7 -6 -6 -6 -6 -6 -6 -5 -5 -5 -5 -5 -4 -4 -4 -4 -3 -2 -2 -2 ------- Run | Scr Mat Min Exi Min Mat Sto Fac Low Low Dat Pro Fac Low Low Zio Dee Pro Fac Upp Upp War Pro Fac Arm Lab Res Res Qua Sec Robot Analysis Total 2 | . . . . . 1 . . . . . . . . . . . . 1 . . . . . . . . . . . Derelict Logs Recovered 10 | . . . . . . . . . 1 . 1 . 2 . 1 . . . 1 2 . 2 . . . . . . . Drone Launches . | . . . . . . . . . . . . . . . . . . . . . . . . . . . . . . Drone Recoveries . | . . . . . . . . . . . . . . . . . . . . . . . . . . . . . . Exploration | -11 -10 -10 -10 -9 -8 -8 -7 -7 -7 -7 -6 -6 -6 -6 -6 -6 -5 -5 -5 -5 -5 -4 -4 -4 -4 -3 -2 -2 -2 ------------- Run | Scr Mat Min Exi Min Mat Sto Fac Low Low Dat Pro Fac Low Low Zio Dee Pro Fac Upp Upp War Pro Fac Arm Lab Res Res Qua Sec Turns Passed 10785 | 32 446 405 705 113 1238 2428 276 103 125 41 133 413 136 89 413 575 187 485 125 282 279 90 545 204 66 100 426 188 137 Spaces Moved 14685 | 11 228 204 390 63 487 931 460 324 156 90 222 824 351 287 883 658 444 627 302 373 641 253 1086 511 155 495 1508 1132 589 Core 5 | . . . . . . . . . . . . . . . . . . . . . . . . . . . . . 5 Treads 2325 | . 222 204 390 63 487 931 28 . . . . . . . . . . . . . . . . . . . . . . Legs 17 | 11 6 . . . . . . . . . . . . . . . . . . . . . . . . . . . . Wheels . | . . . . . . . . . . . . . . . . . . . . . . . . . . . . . . Hover . | . . . . . . . . . . . . . . . . . . . . . . . . . . . . . . Flight 12338 | . . . . . . . 432 324 156 90 222 824 351 287 883 658 444 627 302 373 641 253 1086 511 155 495 1508 1132 584 Fastest Speed 9 | 120 120 160 180 180 180 180 26 23 26 26 23 23 23 23 23 23 23 23 23 23 23 23 12 12 24 11 9 9 9 Average Speed 46 | 120 158 177 180 180 180 185 36 25 26 26 23 23 23 23 23 25 23 25 23 23 24 25 22 22 24 12 13 11 13 Slowest Speed 240 | 120 160 180 180 180 180 240 200 26 26 96 26 23 23 23 26 26 26 26 23 23 26 26 24 24 24 24 89 12 80 Overloaded Moves 80 | . . . . . . . . . . . . . . . . . . . . . . . . . . . 2 10 68 Propulsion Burnouts . | . . . . . . . . . . . . . . . . . . . . . . . . . . . . . . Robots Hopped 125 | . . . . . . . 5 . . . . 7 . 1 . . . 8 1 . . 3 18 5 . 5 21 21 30 Cave-ins Triggered 1 | . . . . . . . . . . . . . . . . 1 . . . . . . . . . . . . . Teleports 2 | . . . . . . . . . . . . . . . . . . . . . . . . . 1 . . 1 . Exploration Rate (%) 49 | 2 54 53 67 16 34 95 18 61 33 74 39 17 56 51 84 73 48 18 55 59 90 46 32 38 99 14 36 89 47 Regions Visited 29 Branch Regions 21 Pre-discovered Areas 5 | . . . 1 . . . . . . 1 . . . . 1 . . . . . . 2 . . . . . . . Known Exits Taken 23 | . 1 . . . 1 1 1 1 1 1 1 1 1 1 1 1 1 1 1 1 1 1 1 1 1 . 1 . . Unknown Exits Taken 6 | 1 . 1 1 1 . . . . . . . . . . . . . . . . . . . . . 1 . 1 . Scrap Searched 20 | . . . . 1 . . . 4 1 . . . . 3 4 . 2 . 2 1 . 2 . . . . . . . Spaces Dug 186 | . . . . . 10 1 1 5 3 . . 16 5 . 1 15 11 9 7 18 1 6 34 11 1 4 16 8 3 Terrain Destroyed 197 | . . . . . 19 3 1 5 3 . . 16 5 . 1 15 11 9 7 18 1 6 34 11 1 4 16 8 3 Melee 176 | . . . . . . 1 1 5 3 . . 16 5 . 1 15 11 9 7 18 1 6 34 11 1 4 16 8 3 Projectile 2 | . . . . . . 2 . . . . . . . . . . . . . . . . . . . . . . . AOE 19 | . . . . . 19 . . . . . . . . . . . . . . . . . . . . . . . . Actions | -11 -10 -10 -10 -9 -8 -8 -7 -7 -7 -7 -6 -6 -6 -6 -6 -6 -5 -5 -5 -5 -5 -4 -4 -4 -4 -3 -2 -2 -2 --------- Run | Scr Mat Min Exi Min Mat Sto Fac Low Low Dat Pro Fac Low Low Zio Dee Pro Fac Upp Upp War Pro Fac Arm Lab Res Res Qua Sec Total 17758 | 23 291 234 396 63 713 1410 563 334 235 103 285 1010 397 308 1057 999 516 924 348 545 761 261 1306 574 175 514 1675 1143 595 Wait 2121 | 10 30 9 . 1 88 232 68 1 77 11 27 154 42 23 141 255 62 280 41 150 80 2 169 49 1 5 106 7 . Move 14441 | 10 227 203 389 62 486 930 450 323 155 89 221 809 350 284 882 657 443 612 299 372 641 248 1053 501 154 484 1468 1093 546 Hop 91 | . . . . . . . 4 . . . . 7 . 1 . . . 6 1 . . 1 14 4 . 5 18 17 13 Pick Up 139 | . 10 10 3 . 23 28 4 1 . . 4 6 . . 1 6 . 5 . . 2 . 8 . 2 5 14 3 4 Fast Attach 68 | . 3 . . . 3 12 . 2 . . . 2 . . 3 6 . 4 . . 6 1 3 3 6 . 6 . 8 Attach 63 | . 2 . 1 . 5 5 10 1 . . 1 5 . . . 4 . 1 . . 1 . 4 . . 2 9 4 8 Detach 8 | . . . . . 1 1 . . . . . 1 . . . 2 . . . . . . 1 . . . . . 2 Swap 61 | . . 1 . . 9 26 . . . 2 2 . . . 4 1 . . . . . 2 4 . 2 1 3 3 1 Drop 175 | . 7 3 3 . 22 40 21 1 . . 3 6 . . 4 11 . 1 . . 8 . 11 4 6 3 18 3 . Fire 240 | 3 11 7 . . 73 124 5 . . 1 9 . . . . 3 . . . . . 1 . . 1 . 2 . . Melee 290 | . . . . . . 3 1 5 3 . . 20 5 . 22 54 11 14 7 23 1 6 39 13 3 9 25 13 13 Ram 1 | . . . . . . . . . . . . . . . . . . . . . 1 . . . . . . . . Kick . | . . . . . . . . . . . . . . . . . . . . . . . . . . . . . . Crush 14 | . 1 1 . . 3 9 . . . . . . . . . . . . . . . . . . . . . . . Escape Stasis 24 | . . . . . . . . . . . 18 . . . . . . . . . . . . . . . 6 . . Rewire 22 | . . . . . . . . . . . . . . . . . . 1 . . 21 . . . . . . . . Trap . | . . . . . . . . . . . . . . . . . . . . . . . . . . . . . . Miscellaneous . | . . . . . . . . . . . . . . . . . . . . . . . . . . . . . . Route ------- -11/Scrapyard -10/Materials (discovered 2 exits: [*Mat] / *Min) -10/Mines (discovered 2 exits: [*Mat] / *Exi) -10/Exiles -9/Mines -8/Materials -8/Storage -7/Factory (discovered 2 exits: *Low x2) -7/Lower Caves -7/Lower Caves -7/Data Miner -6/Proximity Caves -6/Factory (discovered 4 exits: *Low x2 / *Ext x2) -6/Lower Caves -6/Lower Caves -6/Zion (discovered 2 exits: *Dee / *Pro) -6/Deep Caves -5/Proximity Caves -5/Factory (discovered 2 exits: *Upp x2) -5/Upper Caves -5/Upper Caves (discovered 2 exits: *Fac / *War) -5/Warlord -4/Proximity Caves -4/Factory (discovered 4 exits: *Res / Upp x2 / *Arm) -4/Armory (discovered 3 exits: Res x2 / *Lab) -4/Lab -3/Research (discovered 3 exits: *Res / Tes x2) -2/Research (discovered 3 exits: [*Acc] / *Qua x2) -2/Quarantine (discovered 2 exits: [*Acc] / *Sec) -2/Section 7 History --------- Turn | Location | Event 7 | -11/Scrapyard | Discovered new exit (range 3) 33 | -11/Scrapyard | Entered Materials 244 | -10/Materials | Discovered new exit (range 14) 313 | -10/Materials | Build established: Mutant 435 | -10/Materials | Identified exit to Mines 435 | -10/Materials | Central database locked down 479 | -10/Materials | Entered Mines 510 | -10/Mines | Discovered new exit (range 5) 674 | -10/Mines | Found a damaged Exp. Sensor Array with a note attached 679 | -10/Mines | Found Prototype Device 810 | -10/Mines | Joined a pair of Derelicts in attacking an 0b10 outpost 877 | -10/Mines | Deemed a non-threat by the Exiles lab entrance 877 | -10/Mines | Discovered new exit (range 5) 884 | -10/Mines | Entered Exiles 928 | -10/Exiles | Met 8R-AWN 960 | -10/Exiles | Met EX-HEX 1045 | -10/Exiles | Met EX-DEC 1073 | -10/Exiles | Learned location of Zion (-6) 1254 | -10/Exiles | Met EX-BIN 1279 | -10/Exiles | Aligned with FarCom system 1281 | -10/Exiles | Given EX-Vault access code 1322 | -10/Exiles | Opened EX-Vault 1336 | -10/Exiles | Found Field Lobotomy Kit 1375 | -10/Exiles | Warned to stay clear of 0b10 Research branches 1568 | -10/Exiles | Discovered new exit (range 14) 1589 | -10/Exiles | Left Exiles lab with Field Lobotomy Kit 1589 | -10/Exiles | Entered Mines 1664 | -9/Mines | Discovered new exit (range 16) 1702 | -9/Mines | Entered Materials 1702 | -8/Materials | Evolved 4 slots: Utility x4 2096 | -8/Materials | Discovered new exit (range 6) 2603 | -8/Materials | Build established: Scavenger-Mutant 2938 | -8/Materials | Identified exit to Storage 2940 | -8/Materials | Entered Storage 3004 | -8/Storage | Repaired Lgt. Armor Plating 3070 | -8/Storage | Repaired Lgt. Armor Plating 3071 | -8/Storage | Identified Exp. Sensor Array 3154 | -8/Storage | Repaired Exp. Sensor Array 3929 | -8/Storage | Discovered new exit (range 11) 4749 | -8/Storage | Garrison activated, responded to threat 5001 | -8/Storage | Identified exit to Factory 5222 | -8/Storage | Central database locked down 5368 | -8/Storage | Entered Factory 5368 | -7/Factory | Evolved 2 slots: Propulsion x2 5536 | -7/Factory | Identified exit to Lower Caves 5644 | -7/Factory | Entered Lower Caves 5644 | -7/Lower Caves | Accompanied by 1 ally 5673 | -7/Lower Caves | Found Alien Artifact 5673 | -7/Lower Caves | Identified Core Expander 5673 | -7/Lower Caves | Installed Core Expander, added new Propulsion slot 5744 | -7/Lower Caves | Discovered new exit (range 5) 5747 | -7/Lower Caves | Identified exit to Lower Caves 5747 | -7/Lower Caves | Entered another Lower Caves area 5755 | -7/Lower Caves | Learned location of 1 exit from Factory 5756 | -7/Lower Caves | Learned Factory emergency access door positions 5756 | -7/Lower Caves | Learned Research security intel 5756 | -7/Lower Caves | A Commander dispatched an escort 5775 | -7/Lower Caves | Encountered a Warlord checkpoint 5783 | -7/Lower Caves | Discovered new exit (range 14) 5795 | -7/Lower Caves | Identified exit to Data Miner 5872 | -7/Lower Caves | Entered Data Miner 5872 | -7/Data Miner | Accompanied by 2 allies 5872 | -7/Data Miner | Discovered new exit (range 6) 5873 | -7/Data Miner | Commander's escort returned to base 5873 | -7/Data Miner | Commander's escort returned to base 5874 | -7/Data Miner | Identified exit to Proximity Caves 5878 | -7/Data Miner | Met Data Miner 5882 | -7/Data Miner | Learned location of Section 7 (-2) 5882 | -7/Data Miner | Acquired the access code to Warlord's prototype stash 5886 | -7/Data Miner | Received God Mode back door access code from Data Miner 5892 | -7/Data Miner | Assimilated Data Miner with FLK Orb 5913 | -7/Data Miner | Entered Proximity Caves 5913 | -6/Proximity Caves | Accompanied by 1 ally 5939 | -6/Proximity Caves | Destroyed Data Miner 5944 | -6/Proximity Caves | Found Prototype Hackware 5945 | -6/Proximity Caves | Found Prototype Hackware 5949 | -6/Proximity Caves | Found Prototype Hackware 5951 | -6/Proximity Caves | Found Prototype Hackware 5971 | -6/Proximity Caves | Build established: Hacker-Sprinter 5981 | -6/Proximity Caves | Identified exit to Factory 6046 | -6/Proximity Caves | Entered Factory 6046 | -6/Factory | Evolved 2 slots: Utility x2 6047 | -6/Factory | Identified exit to Lower Caves 6051 | -6/Factory | Identified System Mapper 6052 | -6/Factory | Identified Quantum Router 6053 | -6/Factory | Identified Ghost Barrier 6055 | -6/Factory | Identified Deep Network Scanner 6056 | -6/Factory | Identified exit to Extension 6235 | -6/Factory | Fabricated Exp. Utility Shielding? 6274 | -6/Factory | Central database locked down 6287 | -6/Factory | Fabricated Imp. Plasma Cutter (x2) 6333 | -6/Factory | Fabricated Exp. Signal Interpreter? 6406 | -6/Factory | Fabricated Adv. Hacking Suite? 6459 | -6/Factory | Entered Lower Caves 6476 | -6/Lower Caves | Learned Factory stockpile data 6577 | -6/Lower Caves | Learned Factory garrison access intel 6594 | -6/Lower Caves | Discovered new exit (range 5) 6595 | -6/Lower Caves | Identified exit to Lower Caves 6595 | -6/Lower Caves | Entered another Lower Caves area 6669 | -6/Lower Caves | Discovered new exit (range 10) 6671 | -6/Lower Caves | Identified exit to Zion 6684 | -6/Lower Caves | Entered Zion 6702 | -6/Zion | Discovered new exit (range 15) 6705 | -6/Zion | Identified exit to Proximity Caves 6730 | -6/Zion | Learned Factory terminal intel 6791 | -6/Zion | Given A8's code to call for help 6875 | -6/Zion | Discovered new exit (range 3) 6877 | -6/Zion | Identified exit to Deep Caves 6877 | -6/Zion | Saw the warning signs outside the Deep Caves entrance 6900 | -6/Zion | Rebuked by Imprinter 6921 | -6/Zion | Received a visual enhancement algorithm 6931 | -6/Zion | Gained Derelict followers 7004 | -6/Zion | Enhanced Grunt warped into view, answering call for help 7011 | -6/Zion | Enhanced Grunt warped into view, answering call for help 7097 | -6/Zion | Entered Deep Caves 7097 | -6/Deep Caves | Accompanied by 4 allies 7181 | -6/Deep Caves | Attacked by Z-Imprinter 7207 | -6/Deep Caves | Destroyed Z-Imprinter 7219 | -6/Deep Caves | Found Prototype Device 7225 | -6/Deep Caves | Found Prototype Device 7225 | -6/Deep Caves | Identified Exp. Thermal Shield 7231 | -6/Deep Caves | Found Prototype Protection 7231 | -6/Deep Caves | Identified Zio. Weapon Casing 7233 | -6/Deep Caves | Identified Zio. Metafield Generator 7273 | -6/Deep Caves | Build established: Wizard-Sprinter 7279 | -6/Deep Caves | Z-Facility disabled 7581 | -6/Deep Caves | Crushed by falling debris 7620 | -6/Deep Caves | Discovered new exit (range 6) 7621 | -6/Deep Caves | Identified exit to Proximity Caves 7672 | -6/Deep Caves | Entered Proximity Caves 7825 | -5/Proximity Caves | Discovered new exit (range 8) 7859 | -5/Proximity Caves | Identified exit to Factory 7859 | -5/Proximity Caves | Entered Factory 7859 | -5/Factory | Evolved 2 slots: Utility x2 7861 | -5/Factory | Loaded intel: 19 terminal locations 7862 | -5/Factory | Loaded intel: 4 garrison access locations 7883 | -5/Factory | Identified exit to Upper Caves 7930 | -5/Factory | Central database locked down 7984 | -5/Factory | Repaired Exp. Utility Shielding 8023 | -5/Factory | Repaired Adv. Reaction Control System 8075 | -5/Factory | Repaired Broken Adv. Phase Shifter 8132 | -5/Factory | Repaired Broken Exp. Heat Sink 8172 | -5/Factory | Repaired F-cell Engine 8204 | -5/Factory | Repaired Imp. VTOL Module 8344 | -5/Factory | Entered Upper Caves 8344 | -5/Upper Caves | Accompanied by 1 ally 8441 | -5/Upper Caves | Identified exit to Upper Caves 8459 | -5/Upper Caves | Attracted the attention of an 0b10 checkpoint 8469 | -5/Upper Caves | Entered another Upper Caves area 8471 | -5/Upper Caves | Discovered new exit (range 15) 8473 | -5/Upper Caves | Identified exit to Factory 8491 | -5/Upper Caves | Learned Factory emergency access door positions 8497 | -5/Upper Caves | Learned Factory terminal intel 8749 | -5/Upper Caves | Discovered new exit (range 11) 8751 | -5/Upper Caves | Identified exit to Warlord 8751 | -5/Upper Caves | Entered Warlord 8793 | -5/Warlord | Received a Watcher feed algorithm from an ecstatic Tinkerer 8800 | -5/Warlord | Met Warlord 8803 | -5/Warlord | Opened Warlord's prototype stash 8811 | -5/Warlord | Found Prototype Reactor 8825 | -5/Warlord | Warlord's base attacked by MAIN.C 8985 | -5/Warlord | Opened side exit 8989 | -5/Warlord | Discovered new exit (range 11) 8991 | -5/Warlord | Identified exit to Proximity Caves 9030 | -5/Warlord | Entered Proximity Caves 9032 | -4/Proximity Caves | Assimilated H-77 Assassin with FLK Orb 9040 | -4/Proximity Caves | Learned location of Armory (-4) 9119 | -4/Proximity Caves | Discovered exit to Factory (range 7) 9120 | -4/Proximity Caves | Entered Factory 9120 | -4/Factory | Evolved 2 slots: Power x1, Propulsion x1 9121 | -4/Factory | Identified Vortex Chain Reactor 9122 | -4/Factory | Loaded intel: 20 terminal locations 9224 | -4/Factory | Identified exit to Upper Caves 9224 | -4/Factory | Identified exit to Armory 9348 | -4/Factory | Fabricated Exp. Utility Shielding? 9421 | -4/Factory | Build established: Wizard-Scout 9552 | -4/Factory | Fabricated Cld. Nuclear Pulse Thruster (x1) 9596 | -4/Factory | Fabricated Cld. Nuclear Pulse Thruster? 9656 | -4/Factory | Discovered new exit (range 16) 9665 | -4/Factory | Entered Armory 9667 | -4/Armory | Identified exit to Research 9667 | -4/Armory | Central database locked down 9668 | -4/Armory | Found Prototype Device 9668 | -4/Armory | Identified EM Disruption Field 9760 | -4/Armory | Fabricated Adv. Power Amplifier (x1) 9844 | -4/Armory | Fabricated Exp. Heat Sink? 9863 | -4/Armory | Discovered new exit (range 7) 9868 | -4/Armory | Identified exit to Lab 9869 | -4/Armory | Entered Lab 9869 | -4/Lab | Discovered exit to Research (range 9) 9873 | -4/Lab | Unable to decrypt terminal 9875 | -4/Lab | Detected for breach 9879 | -4/Lab | Gained access to the hidden lab's interior 9882 | -4/Lab | Assimilated A5 with FLK Orb 9894 | -4/Lab | Found Alien Artifact 9894 | -4/Lab | Identified Integrated Dissipator 9894 | -4/Lab | Installed Integrated Dissipator, increased core heat dissipation (+2%) 9901 | -4/Lab | Found Prototype Device 9901 | -4/Lab | Identified AEGIS Remote Shield 9905 | -4/Lab | Found Deep Network Scanner 9910 | -4/Lab | Unable to decrypt terminal 9920 | -4/Lab | Found Alien Artifact 9920 | -4/Lab | Identified Transdimensional Reconstructor 9920 | -4/Lab | Warped through subspace 9927 | -4/Lab | Found Alien Artifact 9935 | -4/Lab | Entered Research 9935 | -3/Research | Accompanied by 1 ally 9935 | -3/Research | Evolved 2 slots: Utility x2 9953 | -3/Research | Build established: Wizard-Sprinter 9988 | -3/Research | Identified exit to Testing 10001 | -3/Research | Discovered new exit (range 2) 10005 | -3/Research | Identified Core Reset Matrix 10026 | -3/Research | Intercept squad dispatched 10035 | -3/Research | Entered another Research area 10035 | -2/Research | Warlord forces began assault on 0b10 10035 | -2/Research | Evolved 2 slots: Propulsion x1, Utility x1 10068 | -2/Research | Fabricated Exp. Heat Sink? 10085 | -2/Research | Identified exit to Quarantine 10097 | -2/Research | Fabricated Adv. Power Amplifier (x1) 10125 | -2/Research | Fabricated Adv. Power Amplifier (x1) 10145 | -2/Research | Research machine network offline 10153 | -2/Research | Fabricated Adv. Power Amplifier (x1) 10183 | -2/Research | Discovered new exit (range 14) 10210 | -2/Research | Met up with Warlord 10213 | -2/Research | Found Prototype Device 10213 | -2/Research | Identified Exp. Phase Shifter 10247 | -2/Research | Spotted B-90 Cyclops 10287 | -2/Research | Spotted Tracker 10292 | -2/Research | Spotted Tracker 10320 | -2/Research | Borebot progress halted 10337 | -2/Research | Local fabrication network quarantined 10352 | -2/Research | Combat Programmer assimilated allied 8Q-WPG(S) 10383 | -2/Research | Borebot progress halted 10386 | -2/Research | Borebot progress halted 10418 | -2/Research | Borebot progress halted 10419 | -2/Research | Spotted Tracker 10419 | -2/Research | Spotted Tracker 10420 | -2/Research | Spotted Tracker 10421 | -2/Research | Assimilated Tracker with FLK Orb 10423 | -2/Research | Assimilated Tracker with FLK Orb 10428 | -2/Research | Allies destroyed Tracker 10461 | -2/Research | Entered Quarantine 10462 | -2/Quarantine | Maximum security lockdown engaged 10487 | -2/Quarantine | Found Alien Artifact 10512 | -2/Quarantine | Cryocooling Duct disabled 10518 | -2/Quarantine | Cryocooling Duct disabled 10527 | -2/Quarantine | Ambient heat levels rising (+20) 10533 | -2/Quarantine | Ambient heat levels rising (+20) 10543 | -2/Quarantine | Intercept squad dispatched 10545 | -2/Quarantine | Spotted Tracker 10551 | -2/Quarantine | Spotted Tracker 10557 | -2/Quarantine | Spotted Combat Programmer 10565 | -2/Quarantine | Spotted Alpha 7 10598 | -2/Quarantine | Intercept squad dispatched 10604 | -2/Quarantine | Spotted Tracker 10611 | -2/Quarantine | Spotted Combat Programmer 10614 | -2/Quarantine | Spotted Combat Programmer 10614 | -2/Quarantine | Spotted Combat Programmer 10616 | -2/Quarantine | Spotted Combat Programmer 10618 | -2/Quarantine | Spotted Tracker 10620 | -2/Quarantine | Spotted Tracker 10625 | -2/Quarantine | Found Transdimensional Reconstructor 10626 | -2/Quarantine | Warped through subspace 10631 | -2/Quarantine | Discovered new exit (range 15) 10641 | -2/Quarantine | Spotted Fortress 10649 | -2/Quarantine | Discovered new exit (range 5) 10649 | -2/Quarantine | Entered Section 7 10650 | -2/Section 7 | Maximum security lockdown engaged 10654 | -2/Section 7 | Found Alien Artifact 10654 | -2/Section 7 | Identified Integrated Reactor 10654 | -2/Section 7 | Installed Integrated Reactor, increased core energy generation (+2%) 10684 | -2/Section 7 | Spotted B-90 Cyclops 10690 | -2/Section 7 | Spotted S7 Guard 10693 | -2/Section 7 | Found Alien Artifact 10693 | -2/Section 7 | Identified Core Regenerator 10693 | -2/Section 7 | Used Core Regenerator, restored core integrity (+177) 10708 | -2/Section 7 | Spotted Executioner 10712 | -2/Section 7 | Spotted B-99 Colossus 10719 | -2/Section 7 | Found Alien Artifact 10719 | -2/Section 7 | Identified Integrity Redistributor 10719 | -2/Section 7 | Used Integrity Redistributor, redistributed integrity from core (-49) 10720 | -2/Section 7 | Found Integrity Redistributor 10721 | -2/Section 7 | Found Integrity Redistributor 10729 | -2/Section 7 | Identified Subatomic Replicator 10729 | -2/Section 7 | Used Subatomic Replicator to replicate Alien Artifact 10730 | -2/Section 7 | Intercept squad dispatched 10730 | -2/Section 7 | Found Alien Artifact 10730 | -2/Section 7 | Identified LRC Storage 10730 | -2/Section 7 | Installed LRC Storage, increased inventory capacity (+2) 10732 | -2/Section 7 | Installed LRC Storage, increased inventory capacity (+2) 10734 | -2/Section 7 | Found Alien Artifact 10734 | -2/Section 7 | Identified LRC Insulator 10734 | -2/Section 7 | Installed LRC Insulator, gained EM resistance (25) 10735 | -2/Section 7 | Found LRC Insulator 10735 | -2/Section 7 | Installed LRC Insulator, gained EM resistance (25) 10746 | -2/Section 7 | Spotted Executioner 10747 | -2/Section 7 | Spotted Alpha 7 10747 | -2/Section 7 | Spotted Alpha 7 10748 | -2/Section 7 | Spotted S7 Guard 10751 | -2/Section 7 | Spotted Tracker 10752 | -2/Section 7 | Spotted Tracker 10755 | -2/Section 7 | Spotted S7 Guard 10755 | -2/Section 7 | Found Alien Artifact 10755 | -2/Section 7 | Identified Integrated Heat Negator 10755 | -2/Section 7 | Installed Integrated Heat Negator, increased core heat dissipation (+2%) 10766 | -2/Section 7 | Spotted Combat Programmer 10769 | -2/Section 7 | Spotted Combat Programmer 10771 | -2/Section 7 | Released all parts (17) 10780 | -2/Section 7 | Core integrity fell below 50% 10784 | -2/Section 7 | Core integrity fell below 20% 10786 | -2/Section 7 | Destroyed by G-73 Enforcer with Phase Gun Last Messages --------------- 10775_ I-47 Archangel unfolds itself. 10775_ C-30 ARC bursts open, deploying its payload. 10775_ G-73 Enforcer unfolds itself. 10775_ B-74 Champion unfolds itself. 10776_ C-30 ARC bursts open, deploying its payload. 10776_ G-73 Enforcer unfolds itself. 10776_ L-61 Swordsman unfolds itself. 10776_ G-73 Enforcer unfolds itself. 10776_ I-47 Archangel unfolds itself. 10776_ C-30 ARC bursts open, deploying its payload. 10776_ G-73 Enforcer unfolds itself. 10776_ E-15 Imp unfolds itself. 10780_ W-44 Eye sends out distress signal. 10781_ Cld. Q-thruster temporarily disabled. 10781_ Cld. Q-thruster destroyed. 10782_ Terminal disabled. 10783_ Electron Diverter temporarily disabled. 10783_ E-15 Imp destroyed. 10784_ Electron Diverter destroyed. 10786_ B-90 Cyclops activates siege mode. Map ----- +----------------------------------------------------+ | | | | | ?????????????????????????????????????????????????? | | ?????????????????????????????????????????????????? | | ?????????????????????????????????????????????????# | | ???????????????????????????????????????????????? | | ######?????????????????????????????????????????""" | | #???????????????????????????????????????? """ | | #???????????????????????????????????????? """ | | """ #???????????????????????????????????????# | | " " #??????????????????????????????#"???????# """ | | """ #??????????????????????????????# ??????# """ | | #?????????????????Y????????????? ???????""" | | #??????????????????Y???????????###/##??????? | | #?????????????? g??????????????# ######### | | "" #????????????? ?????????????+ | | """ #????????????# #????????????# | | "R #????????????# #????????????# ### | | """ #??????""""" # g #????????????# " #?? | | """ # ?? """"""" # #????????????# """ ### | | ? # # #???????Y????# """" !![# | | #???## """"""" # #????????????# """ !![# | | ???????? """"""" # ############## w ![ # | | ??????????""""""" # """T""" # | | ???????????? ?# """ ""= s + | | ???????????###+#### @ g e % //######+#+## | | ???????????# e /!BB#? ?# | | ?????#####?# l BB## # | | ###### g ###A sggggg ;### # | | s g ggg g##?# ### | | ###### ### ###/######g g #??# #?? | | #????## ##?# """ """ # ##gi #??# / #?? | | #?????# #??# """ """ !# ##gg" ###########?? | | #?????# #??# """ """ # ##ggli# #??????? | | #???? ?# # g bggp# ""#??????? | | #???# ## """ """ # == ## gpp/ ""#??????? | | +?? ## """ """ # = ## gg# ""#??????? | | #?### ## """ """ w# #####p# T#??????? | | #???#! = ## # #???#Y# ""#??????? | | #???########"" ? """ #########???#Y# ""#??????? | | #???????????"T ? ??" ???????????#"# ""#??????? | | #????????????? ? ??" ???????????#p# #??????? | | ?????????????? ?? ?? o???????????#"### ##??????? | | ????????????????? ?? ???????????# #??##???????? | | ????????????????????+#+#???????????# #???????????? | | ??????????????????????????# ??????# #???????????? | | ??????????????????????????# ##### ############# | | ??????????????????????????# | | ??????????????????????????# | | | ??????????????????????????# !=! | +----------------------------------------------------+ Best States ------------- Heat Dissipation 161 Coolant Potential 100 Energy Generation 125 Energy Capacity 700 Matter Stores 300 Matter Capacity 300 Sight Range 16 Robot Scan Range 30 Terrain Scan Density 10 Power Amplification 120 Armor Coverage 450 Resistance: EM 50 Utility Shielding 90 Phase Shifting 20 Evasion (%) 101 Targeting Accuracy 8 Recoil Reduction 2 Offensive Hacking 75 Defensive Hacking 45 Item Schematics ----------------- System Shield | -7/Factory | Hacked Imp. Utility Shielding | -7/Factory | Hacked Combat Drone Bay | -7/Data Miner | Free Lgt. Regenerative Plating | -7/Data Miner | Free Cmb. Gravmag System | -7/Data Miner | Free Exp. Terrain Scan Processor | -7/Data Miner | Free Exp. Transmission Jammer | -7/Data Miner | Free Exp. ECM Suite | -7/Data Miner | Free Plasma Sword | -7/Data Miner | Free Exp. Utility Shielding | -6/Factory | Hacked Imp. Cesium-ion Thruster | -6/Factory | Hacked Imp. Plasma Cutter | -6/Factory | Hacked Exp. Signal Interpreter | -6/Factory | Hacked Adv. Hacking Suite | -6/Factory | Hacked Adv. System Shield | -6/Factory | Hacked Exp. Targeting Computer | -6/Factory | Hacked F-cell Engine | -6/Factory | Hacked Exp. Terrain Scanner | -6/Factory | Hacked Adv. Melee Analysis Suite | -6/Factory | Hacked Riot Gun | -6/Zion | Free Battle Rifle | -6/Zion | Free Flamer | -6/Zion | Free Enh. Flamer | -6/Zion | Free Exp. Weapon Shielding | -5/Factory | Hacked Lgt. Neutrino Core | -5/Factory | Hacked Adv. Phase Shifter | -5/Factory | Scanalyzed Adv. Reaction Control System | -5/Factory | Scanalyzed Exp. Heat Sink | -5/Factory | Scanalyzed Cld. Nuclear Pulse Thruster | -4/Factory | Hacked Adv. Power Amplifier | -4/Factory | Hacked Cld. Impulse Thruster | -3/Research | Hacked Imp. Diametric Drive | -3/Research | Scanalyzed Adv. Weapon Cycler | -3/Research | Scanalyzed Robot Schematics ------------------ S-27 Virus | -7/Data Miner | Free G-50 Soldier | -7/Data Miner | Free L-41 Fighter | -7/Data Miner | Free P-70 Sage | -7/Data Miner | Free I-36 Angel | -7/Data Miner | Free I-47 Archangel | -7/Data Miner | Free Fabricated ------------ Exp. Utility Shielding | x1 | -6/Factory Imp. Plasma Cutter | x2 | -6/Factory | Preloaded Exp. Signal Interpreter | x1 | -6/Factory Adv. Hacking Suite | x1 | -6/Factory Exp. Utility Shielding | x1 | -4/Factory Cld. Nuclear Pulse Thruster | x1 | -4/Factory Cld. Nuclear Pulse Thruster | x1 | -4/Factory Adv. Power Amplifier | x1 | -4/Armory Exp. Heat Sink | x1 | -4/Armory Exp. Heat Sink | x1 | -2/Research Adv. Power Amplifier | x1 | -2/Research Adv. Power Amplifier | x1 | -2/Research Adv. Power Amplifier | x1 | -2/Research Alien Tech Used ----------------- Core Expander Integrated Dissipator Transdimensional Reconstructor Integrated Reactor Core Regenerator Integrity Redistributor Subatomic Replicator LRC Storage LRC Insulator Integrated Heat Negator Achievements -------------- None Challenges ------------ None Game ------ Seed ProtonShadingSuite Manual? 0 Play Time 03:34:41 Cumulative 685.0 hours Start 2020.03.27 @ 13:22:11 End 2020.03.28 @ 12:46:58 Sessions 9 Manual Loads 0 Difficulty Rogue Special Mode None Game No. 429 Rogue 429 Adventurer 0 Explorer 0 Win Type - Total 105 Types 71/6/8/10/5/1/4 Lore% 97 Gallery% 95 Achievement% 80 Wizard Run 0 Options --------- ASCII 0 Keyboard 0 Movement Numpad Keybinds 0 Fullscreen 2 Font 18/SmallcapsGlow Map View 76x50 Tactical HUD 1 Map Filters NONE Filters NONE Steam 1 RUN: d39beb5e-e177-4515-8c4a-ad6c2dfe06fd